[Event "Estonian Women's Chess Championship 2022"]
[Site "Tallinn, Paul Keres Chess House, Estonia"]
[Date "2022.12.12"]
[Round "3.1"]
[White "Sinitsina, Anastassia"]
[Black "Blokhin, Sofia"]
[Result "1/2-1/2"]
[TimeControl "90 minutes for first 40 moves and 15 min. for the rest of the game with 30 sec. increment from move 1"]
[WhiteTitle "WFM"]
[BlackTitle "WFM"]
[WhiteFideId "4504640"]
[BlackFideId "4508190"]
[WhiteElo "2175"]
[BlackElo "2065"]

1. e4 {

[%clk 01:29:38]

} {

[%emt 00:01:21]

} c5 {

[%clk 01:30:54]

} {

[%emt 00:00:06]

} 2. Nf3 {

[%clk 01:30:03]

} {

[%emt 00:00:05]

} e6 {

[%clk 01:31:19]

} {

[%emt 00:00:06]

} 3. d4 {

[%clk 01:30:26]

} {

[%emt 00:00:07]

} cxd4 {

[%clk 01:31:43]

} {

[%emt 00:00:05]

} 4. Nxd4 {

[%clk 01:30:52]

} {

[%emt 00:00:04]

} a6 {

[%clk 01:32:08]

} {

[%emt 00:00:05]

} 5. Bd3 {

[%clk 01:31:13]

} {

[%emt 00:00:09]

} Nf6 {

[%clk 01:32:25]

} {

[%emt 00:00:13]

} 6. O-O {

[%clk 01:31:22]

} {

[%emt 00:00:21]

} d6 {

[%clk 01:31:53]

} {

[%emt 00:01:02]

} 7. c4 {

[%clk 01:31:13]

} {

[%emt 00:00:40]

} Be7 {

[%clk 01:31:47]

} {

[%emt 00:00:35]

} 8. Nc3 {

[%clk 01:30:55]

} {

[%emt 00:00:48]

} O-O {

[%clk 01:31:20]

} {

[%emt 00:00:58]

} 9. Be3 {

[%clk 01:30:27]

} {

[%emt 00:00:58]

} Bd7 {

[%clk 01:27:45]

} {

[%emt 00:04:05]

} 10. Qe2 {

[%clk 01:23:20]

} {

[%emt 00:07:37]

} Qc7 {

[%clk 01:21:34]

} {

[%emt 00:06:41]

} 11. Rac1 {

[%clk 01:22:40]

} {

[%emt 00:01:10]

} Nc6 {

[%clk 01:17:10]

} {

[%emt 00:04:55]

} 12. f4 {

[%clk 01:20:31]

} {

[%emt 00:02:39]

} Rac8 {

[%clk 01:14:40]

} {

[%emt 00:02:59]

} 13. Nxc6 {

[%clk 01:19:07]

} {

[%emt 00:01:55]

} Bxc6 {

[%clk 01:13:56]

} {

[%emt 00:01:14]

} 14. Nd5 {

[%clk 01:12:06]

} {

[%emt 00:07:31]

} exd5 {

[%clk 01:05:36]

} {

[%emt 00:08:50]

} 15. cxd5 {

[%clk 01:12:31]

} {

[%emt 00:00:04]

} Qa5 {

[%clk 01:04:06]

} {

[%emt 00:02:01]

} 16. dxc6 {

[%clk 01:12:55]

} {

[%emt 00:00:06]

} Rxc6 {

[%clk 01:04:12]

} {

[%emt 00:00:24]

} 17. Rxc6 {

[%clk 01:10:42]

} {

[%emt 00:02:43]

} bxc6 {

[%clk 01:04:35]

} {

[%emt 00:00:07]

} 18. Rc1 {

[%clk 01:07:24]

} {

[%emt 00:03:48]

} c5 {

[%clk 01:01:30]

} {

[%emt 00:03:35]

} 19. e5 {

[%clk 01:04:04]

} {

[%emt 00:03:50]

} dxe5 {

[%clk 01:00:00]

} {

[%emt 00:01:59]

} 20. fxe5 {

[%clk 01:03:20]

} {

[%emt 00:01:15]

} c4 {

[%clk 00:55:25]

} {

[%emt 00:05:05]

} 21. Bxc4 {

[%clk 01:02:30]

} {

[%emt 00:01:20]

} Qxe5 {

[%clk 00:55:41]

} {

[%emt 00:00:13]

} 22. Bf2 {

[%clk 01:01:25]

} {

[%emt 00:01:35]

} Qg5 {

[%clk 00:51:07]

} {

[%emt 00:05:04]

} 23. Be3 {

[%clk 00:56:33]

} {

[%emt 00:05:22]

} Qe5 {

[%clk 00:50:36]

} {

[%emt 00:01:01]

} 24. Bf2 {

[%clk 00:53:32]

} {

[%emt 00:03:31]

} Qg5 {

[%clk 00:50:43]

} {

[%emt 00:00:22]

} 25. Be3 {

[%clk 00:52:40]

} {

[%emt 00:01:24]

} 1/2-1/2

[Event "Estonian Women's Chess Championship 2022"]
[Site "Tallinn, Paul Keres Chess House, Estonia"]
[Date "2022.12.12"]
[Round "3.2"]
[White "Levchenko, Marina"]
[Black "Haapsal, Maria Ioanna"]
[Result "1-0"]
[TimeControl "90 minutes for first 40 moves and 15 min. for the rest of the game with 30 sec. increment from move 1"]
[WhiteFideId "4508548"]
[BlackFideId "4512286"]
[WhiteElo "1625"]
[BlackElo "1386"]

1. d4 {

[%clk 01:30:58]

} {

[%emt 00:00:02]

} Nf6 {

[%clk 01:30:38]

} {

[%emt 00:00:22]

} 2. c4 {

[%clk 01:31:16]

} {

[%emt 00:00:11]

} g6 {

[%clk 01:31:02]

} {

[%emt 00:00:07]

} 3. Nc3 {

[%clk 01:31:39]

} {

[%emt 00:00:07]

} Bg7 {

[%clk 01:31:25]

} {

[%emt 00:00:06]

} 4. e4 {

[%clk 01:31:57]

} {

[%emt 00:00:12]

} d6 {

[%clk 01:31:48]

} {

[%emt 00:00:07]

} 5. Be2 {

[%clk 01:32:12]

} {

[%emt 00:00:15]

} O-O {

[%clk 01:32:07]

} {

[%emt 00:00:11]

} 6. Nf3 {

[%clk 01:32:27]

} {

[%emt 00:00:15]

} Na6 {

[%clk 01:31:16]

} {

[%emt 00:01:21]

} 7. O-O {

[%clk 01:32:20]

} {

[%emt 00:00:36]

} e5 {

[%clk 01:29:27]

} {

[%emt 00:02:19]

} 8. d5 {

[%clk 01:31:10]

} {

[%emt 00:01:40]

} Nc5 {

[%clk 01:29:47]

} {

[%emt 00:00:11]

} 9. Qc2 {

[%clk 01:29:44]

} {

[%emt 00:01:55]

} a5 {

[%clk 01:30:04]

} {

[%emt 00:00:13]

} 10. Bg5 {

[%clk 01:29:03]

} {

[%emt 00:01:11]

} h6 {

[%clk 01:29:35]

} {

[%emt 00:01:00]

} 11. Be3 {

[%clk 01:28:30]

} {

[%emt 00:01:02]

} Nh7 {

[%clk 01:26:09]

} {

[%emt 00:03:57]

} 12. Nd2 {

[%clk 01:19:33]

} {

[%emt 00:09:26]

} f5 {

[%clk 01:23:53]

} {

[%emt 00:02:47]

} 13. f3 {

[%clk 01:16:25]

} {

[%emt 00:03:38]

} b6 {

[%clk 01:17:02]

} {

[%emt 00:07:20]

} 14. a3 {

[%clk 01:14:11]

} {

[%emt 00:02:44]

} g5 {

[%clk 01:07:00]

} {

[%emt 00:10:32]

} 15. b4 {

[%clk 01:05:52]

} {

[%emt 00:08:49]

} Nb7 {

[%clk 01:01:12]

} {

[%emt 00:06:18]

} 16. exf5 {

[%clk 01:01:40]

} {

[%emt 00:04:42]

} Bxf5 {

[%clk 01:00:19]

} {

[%emt 00:01:22]

} 17. Bd3 {

[%clk 01:01:32]

} {

[%emt 00:00:38]

} Qd7 {

[%clk 00:56:02]

} {

[%emt 00:04:48]

} 18. Nce4 {

[%clk 00:55:53]

} {

[%emt 00:06:09]

} Bxe4 {

[%clk 00:43:22]

} {

[%emt 00:13:09]

} 19. Nxe4 {

[%clk 00:51:26]

} {

[%emt 00:04:57]

} Nf6 {

[%clk 00:39:45]

} {

[%emt 00:04:06]

} 20. Rfd1 {

[%clk 00:44:52]

} {

[%emt 00:07:05]

} Nxe4 {

[%clk 00:35:50]

} {

[%emt 00:04:25]

} 21. Bxe4 {

[%clk 00:44:54]

} {

[%emt 00:00:28]

} Qe7 {

[%clk 00:33:21]

} {

[%emt 00:02:59]

} 22. Rac1 {

[%clk 00:42:39]

} {

[%emt 00:02:45]

} axb4 {

[%clk 00:32:23]

} {

[%emt 00:01:28]

} 23. axb4 {

[%clk 00:42:59]

} {

[%emt 00:00:10]

} Ra3 {

[%clk 00:31:04]

} {

[%emt 00:01:48]

} 24. Rd3 {

[%clk 00:39:21]

} {

[%emt 00:04:09]

} Rfa8 {

[%clk 00:29:19]

} {

[%emt 00:02:15]

} 25. Rxa3 {

[%clk 00:37:02]

} {

[%emt 00:02:49]

} Rxa3 {

[%clk 00:29:47]

} {

[%emt 00:00:02]

} 26. Bf2 {

[%clk 00:36:06]

} {

[%emt 00:01:26]

} Bf8 {

[%clk 00:23:16]

} {

[%emt 00:07:02]

} 27. Bf5 {

[%clk 00:33:13]

} {

[%emt 00:03:22]

} Bg7 {

[%clk 00:17:19]

} {

[%emt 00:06:27]

} 28. Bc8 {

[%clk 00:25:03]

} {

[%emt 00:08:40]

} Nd8 {

[%clk 00:15:10]

} {

[%emt 00:02:39]

} 29. c5 {

[%clk 00:18:51]

} {

[%emt 00:06:41]

} bxc5 {

[%clk 00:14:05]

} {

[%emt 00:01:34]

} 30. bxc5 {

[%clk 00:19:14]

} {

[%emt 00:00:08]

} Ra8 {

[%clk 00:13:15]

} {

[%emt 00:01:20]

} 31. Bf5 {

[%clk 00:17:51]

} {

[%emt 00:01:54]

} Nf7 {

[%clk 00:08:56]

} {

[%emt 00:04:48]

} 32. c6 {

[%clk 00:12:10]

} {

[%emt 00:06:11]

} Qd8 {

[%clk 00:06:38]

} {

[%emt 00:02:47]

} 33. Be6 {

[%clk 00:10:49]

} {

[%emt 00:01:52]

} Qf6 {

[%clk 00:05:20]

} {

[%emt 00:01:49]

} 34. Rb1 {

[%clk 00:10:21]

} {

[%emt 00:00:58]

} Re8 {

[%clk 00:03:57]

} {

[%emt 00:01:52]

} 35. Rb7 {

[%clk 00:10:00]

} {

[%emt 00:00:51]

} Re7 {

[%clk 00:03:23]

} {

[%emt 00:01:04]

} 36. Bd7 {

[%clk 00:09:07]

} {

[%emt 00:01:23]

} e4 {

[%clk 00:01:00]

} {

[%emt 00:02:53]

} 37. fxe4 {

[%clk 00:07:49]

} {

[%emt 00:01:48]

} Qa1+ {

[%clk 00:01:07]

} {

[%emt 00:00:24]

} 38. Rb1 {

[%clk 00:07:49]

} {

[%emt 00:00:30]

} Qa5 {

[%clk 00:00:39]

} {

[%emt 00:00:57]

} 39. Bb6 {

[%clk 00:02:17]

} {

[%emt 00:06:03]

} cxb6 {

[%clk 00:00:34]

} {

[%emt 00:00:35]

} 40. c7 {

[%clk 00:17:43]

} {

[%emt 00:00:04]

} Rxd7 {

[%clk 00:15:34]

} {

[%emt 00:00:30]

} 41. c8=Q+ {

[%clk 00:17:58]

} {

[%emt 00:00:14]

} Rd8 {

[%clk 00:15:29]

} {

[%emt 00:00:35]

} 42. Qe6 {

[%clk 00:17:04]

} {

[%emt 00:01:23]

} b5 {

[%clk 00:13:47]

} {

[%emt 00:02:13]

} 43. Qf2 {

[%clk 00:13:04]

} {

[%emt 00:04:30]

} Rf8 {

[%clk 00:12:24]

} {

[%emt 00:01:53]

} 44. Qff5 {

[%clk 00:10:58]

} {

[%emt 00:02:36]

} g4 {

[%clk 00:12:01]

} {

[%emt 00:00:54]

} 45. Qxg4 {

[%clk 00:08:26]

} {

[%emt 00:03:03]

} Qb6+ {

[%clk 00:11:17]

} {

[%emt 00:01:13]

} 46. Kh1 {

[%clk 00:08:43]

} {

[%emt 00:00:13]

} Qd4 {

[%clk 00:10:57]

} {

[%emt 00:00:49]

} 47. h4 {

[%clk 00:06:54]

} {

[%emt 00:02:19]

} Kh8 {

[%clk 00:10:08]

} {

[%emt 00:01:19]

} 48. Rf1 {

[%clk 00:06:17]

} {

[%emt 00:01:07]

} Kg8 {

[%clk 00:09:55]

} {

[%emt 00:00:44]

} 49. Qgg6 {

[%clk 00:05:51]

} {

[%emt 00:00:56]

} Qe5 {

[%clk 00:08:49]

} {

[%emt 00:01:35]

} 50. Rxf7 {

[%clk 00:05:30]

} {

[%emt 00:00:50]

} 1-0

[Event "Estonian Women's Chess Championship 2022"]
[Site "Tallinn, Paul Keres Chess House, Estonia"]
[Date "2022.12.13"]
[Round "4.1"]
[White "Blokhin, Sofia"]
[Black "Levchenko, Marina"]
[Result "0-1"]
[TimeControl "90 minutes for first 40 moves and 15 min. for the rest of the game with 30 sec. increment from move 1"]
[WhiteTitle "WFM"]
[WhiteFideId "4508190"]
[BlackFideId "4508548"]
[WhiteElo "2065"]
[BlackElo "1625"]

1. d4 {

[%clk 01:30:58]

} {

[%emt 00:00:02]

} d5 {

[%clk 01:30:52]

} {

[%emt 00:00:08]

} 2. c4 {

[%clk 01:31:05]

} {

[%emt 00:00:23]

} e6 {

[%clk 01:31:15]

} {

[%emt 00:00:07]

} 3. Nc3 {

[%clk 01:31:27]

} {

[%emt 00:00:09]

} Be7 {

[%clk 01:31:31]

} {

[%emt 00:00:13]

} 4. cxd5 {

[%clk 01:31:51]

} {

[%emt 00:00:07]

} exd5 {

[%clk 01:31:52]

} {

[%emt 00:00:08]

} 5. Bf4 {

[%clk 01:32:14]

} {

[%emt 00:00:06]

} c6 {

[%clk 01:31:57]

} {

[%emt 00:00:26]

} 6. e3 {

[%clk 01:32:35]

} {

[%emt 00:00:09]

} Bf5 {

[%clk 01:31:56]

} {

[%emt 00:00:31]

} 7. g4 {

[%clk 01:32:22]

} {

[%emt 00:00:43]

} Be6 {

[%clk 01:32:02]

} {

[%emt 00:00:24]

} 8. Bd3 {

[%clk 01:31:59]

} {

[%emt 00:00:53]

} h5 {

[%clk 01:27:59]

} {

[%emt 00:04:33]

} 9. gxh5 {

[%clk 01:29:39]

} {

[%emt 00:02:50]

} Nd7 {

[%clk 01:27:13]

} {

[%emt 00:01:16]

} 10. Be2 {

[%clk 01:24:10]

} {

[%emt 00:05:59]

} Ndf6 {

[%clk 01:24:58]

} {

[%emt 00:02:45]

} 11. h3 {

[%clk 01:21:06]

} {

[%emt 00:03:34]

} Bd6 {

[%clk 01:21:29]

} {

[%emt 00:03:59]

} 12. Bg5 {

[%clk 01:18:18]

} {

[%emt 00:03:17]

} Qd7 {

[%clk 01:18:41]

} {

[%emt 00:03:18]

} 13. h6 {

[%clk 01:07:54]

} {

[%emt 00:10:54]

} gxh6 {

[%clk 01:10:26]

} {

[%emt 00:08:45]

} 14. Bh4 {

[%clk 01:07:56]

} {

[%emt 00:00:29]

} O-O-O {

[%clk 01:08:38]

} {

[%emt 00:02:18]

} 15. Qa4 {

[%clk 01:07:07]

} {

[%emt 00:01:18]

} Kb8 {

[%clk 01:07:15]

} {

[%emt 00:01:54]

} 16. b4 {

[%clk 01:03:31]

} {

[%emt 00:04:06]

} Re8 {

[%clk 01:01:19]

} {

[%emt 00:06:26]

} 17. b5 {

[%clk 00:59:31]

} {

[%emt 00:04:30]

} c5 {

[%clk 00:57:22]

} {

[%emt 00:04:28]

} 18. dxc5 {

[%clk 00:58:23]

} {

[%emt 00:01:38]

} Bxc5 {

[%clk 00:57:10]

} {

[%emt 00:00:41]

} 19. Bxf6 {

[%clk 00:57:12]

} {

[%emt 00:01:41]

} Nxf6 {

[%clk 00:57:26]

} {

[%emt 00:00:14]

} 20. Qf4+ {

[%clk 00:57:34]

} {

[%emt 00:00:07]

} Qc7 {

[%clk 00:53:17]

} {

[%emt 00:04:39]

} 21. Qxc7+ {

[%clk 00:40:24]

} {

[%emt 00:17:41]

} Kxc7 {

[%clk 00:53:40]

} {

[%emt 00:00:07]

} 22. a3 {

[%clk 00:40:04]

} {

[%emt 00:00:51]

} Bb6 {

[%clk 00:49:44]

} {

[%emt 00:04:26]

} 23. Kf1 {

[%clk 00:33:13]

} {

[%emt 00:07:20]

} d4 {

[%clk 00:45:47]

} {

[%emt 00:04:28]

} 24. exd4 {

[%clk 00:15:57]

} {

[%emt 00:17:47]

} Bxd4 {

[%clk 00:45:09]

} {

[%emt 00:01:07]

} 25. Rc1 {

[%clk 00:15:47]

} {

[%emt 00:00:39]

} Kb8 {

[%clk 00:41:22]

} {

[%emt 00:04:17]

} 26. Bf3 {

[%clk 00:13:33]

} {

[%emt 00:02:45]

} Rc8 {

[%clk 00:33:07]

} {

[%emt 00:08:46]

} 27. Nge2 {

[%clk 00:12:48]

} {

[%emt 00:01:15]

} Bc4 {

[%clk 00:30:41]

} {

[%emt 00:02:55]

} 28. Ke1 {

[%clk 00:05:43]

} {

[%emt 00:07:35]

} Rhe8 {

[%clk 00:17:43]

} {

[%emt 00:13:28]

} 29. Nd1 {

[%clk 00:05:58]

} {

[%emt 00:00:15]

} Bxb5 {

[%clk 00:17:00]

} {

[%emt 00:01:14]

} 30. Rxc8+ {

[%clk 00:06:13]

} {

[%emt 00:00:15]

} Kxc8 {

[%clk 00:17:18]

} {

[%emt 00:00:12]

} 31. Kd2 {

[%clk 00:05:33]

} {

[%emt 00:01:09]

} Ne4+ {

[%clk 00:14:58]

} {

[%emt 00:02:50]

} 32. Bxe4 {

[%clk 00:05:15]

} {

[%emt 00:00:48]

} Rxe4 {

[%clk 00:15:23]

} {

[%emt 00:00:05]

} 33. Nxd4 {

[%clk 00:03:59]

} {

[%emt 00:01:46]

} Rxd4+ {

[%clk 00:15:48]

} {

[%emt 00:00:05]

} 34. Kc2 {

[%clk 00:04:19]

} {

[%emt 00:00:10]

} Ba4+ {

[%clk 00:15:42]

} {

[%emt 00:00:37]

} 35. Kc1 {

[%clk 00:04:39]

} {

[%emt 00:00:10]

} Rxd1+ {

[%clk 00:14:52]

} {

[%emt 00:01:21]

} 36. Rxd1 {

[%clk 00:05:03]

} {

[%emt 00:00:05]

} Bxd1 {

[%clk 00:15:17]

} {

[%emt 00:00:05]

} 37. Kxd1 {

[%clk 00:05:30]

} {

[%emt 00:00:03]

} Kd7 {

[%clk 00:15:36]

} {

[%emt 00:00:11]

} 38. Ke2 {

[%clk 00:05:34]

} {

[%emt 00:00:27]

} Ke6 {

[%clk 00:15:40]

} {

[%emt 00:00:26]

} 39. a4 {

[%clk 00:05:34]

} {

[%emt 00:00:31]

} b6 {

[%clk 00:15:51]

} {

[%emt 00:00:20]

} 40. Kd3 {

[%clk 00:20:36]

} {

[%emt 00:00:28]

} Kd5 {

[%clk 00:31:09]

} {

[%emt 00:00:12]

} 41. f3 {

[%clk 00:20:06]

} {

[%emt 00:00:59]

} a6 {

[%clk 00:31:30]

} {

[%emt 00:00:09]

} 42. h4 {

[%clk 00:20:21]

} {

[%emt 00:00:15]

} b5 {

[%clk 00:30:29]

} {

[%emt 00:01:31]

} 43. axb5 {

[%clk 00:20:32]

} {

[%emt 00:00:18]

} axb5 {

[%clk 00:30:55]

} {

[%emt 00:00:06]

} 44. h5 {

[%clk 00:20:57]

} {

[%emt 00:00:05]

} Ke5 {

[%clk 00:30:49]

} {

[%emt 00:00:37]

} 45. Ke3 {

[%clk 00:20:57]

} {

[%emt 00:00:30]

} b4 {

[%clk 00:31:01]

} {

[%emt 00:00:18]

} 46. Kd3 {

[%clk 00:21:16]

} {

[%emt 00:00:10]

} Kf4 {

[%emt 00:00:30]

} 0-1

[Event "Estonian Women's Chess Championship 2022"]
[Site "Tallinn, Paul Keres Chess House, Estonia"]
[Date "2022.12.13"]
[Round "4.2"]
[White "Ivanova, Lidia"]
[Black "Sinitsina, Anastassia"]
[Result "0-1"]
[TimeControl "90 minutes for first 40 moves and 15 min. for the rest of the game with 30 sec. increment from move 1"]
[BlackTitle "WFM"]
[WhiteFideId "4506480"]
[BlackFideId "4504640"]
[WhiteElo "1482"]
[BlackElo "2175"]

1. e4 {

[%clk 01:28:07]

} {

[%emt 00:02:52]

} e5 {

[%clk 01:30:47]

} {

[%emt 00:00:14]

} 2. Nf3 {

[%clk 01:28:24]

} {

[%emt 00:00:13]

} Nc6 {

[%clk 01:31:12]

} {

[%emt 00:00:05]

} 3. Nc3 {

[%clk 01:28:46]

} {

[%emt 00:00:08]

} Nf6 {

[%clk 01:31:32]

} {

[%emt 00:00:10]

} 4. Bb5 {

[%clk 01:28:53]

} {

[%emt 00:00:23]

} Bd6 {

[%clk 01:31:14]

} {

[%emt 00:00:48]

} 5. O-O {

[%clk 01:29:10]

} {

[%emt 00:00:13]

} O-O {

[%clk 01:31:32]

} {

[%emt 00:00:13]

} 6. d3 {

[%clk 01:29:24]

} {

[%emt 00:00:16]

} h6 {

[%clk 01:30:05]

} {

[%emt 00:01:57]

} 7. Re1 {

[%clk 01:25:44]

} {

[%emt 00:04:09]

} a6 {

[%clk 01:30:08]

} {

[%emt 00:00:28]

} 8. Ba4 {

[%clk 01:25:07]

} {

[%emt 00:01:07]

} Re8 {

[%clk 01:29:41]

} {

[%emt 00:00:58]

} 9. Nd5 {

[%clk 01:17:11]

} {

[%emt 00:08:25]

} b5 {

[%clk 01:20:38]

} {

[%emt 00:09:33]

} 10. Bb3 {

[%clk 01:16:45]

} {

[%emt 00:00:57]

} Na5 {

[%clk 01:20:17]

} {

[%emt 00:00:51]

} 11. Ne3 {

[%clk 01:14:11]

} {

[%emt 00:03:03]

} Nxb3 {

[%clk 01:20:02]

} {

[%emt 00:00:46]

} 12. axb3 {

[%clk 01:14:30]

} {

[%emt 00:00:11]

} Bf8 {

[%clk 01:20:01]

} {

[%emt 00:00:30]

} 13. Bd2 {

[%clk 01:09:40]

} {

[%emt 00:05:19]

} d5 {

[%clk 01:19:13]

} {

[%emt 00:01:20]

} 14. exd5 {

[%clk 01:08:09]

} {

[%emt 00:02:01]

} Nxd5 {

[%clk 01:19:32]

} {

[%emt 00:00:11]

} 15. Nf1 {

[%clk 00:58:42]

} {

[%emt 00:09:56]

} Bd6 {

[%clk 01:15:51]

} {

[%emt 00:04:11]

} 16. Ng3 {

[%clk 00:57:21]

} {

[%emt 00:01:50]

} f5 {

[%clk 01:13:40]

} {

[%emt 00:02:41]

} 17. c4 {

[%clk 00:52:42]

} {

[%emt 00:05:09]

} Nf4 {

[%clk 01:05:51]

} {

[%emt 00:08:20]

} 18. Bc3 {

[%clk 00:49:33]

} {

[%emt 00:03:38]

} bxc4 {

[%clk 01:04:53]

} {

[%emt 00:01:28]

} 19. bxc4 {

[%clk 00:45:29]

} {

[%emt 00:04:34]

} Ng6 {

[%clk 01:02:55]

} {

[%emt 00:02:28]

} 20. b4 {

[%clk 00:41:19]

} {

[%emt 00:04:39]

} c6 {

[%clk 01:00:21]

} {

[%emt 00:03:06]

} 21. Qc2 {

[%clk 00:29:10]

} {

[%emt 00:12:38]

} Rb8 {

[%clk 00:58:40]

} {

[%emt 00:02:11]

} 22. c5 {

[%clk 00:28:40]

} {

[%emt 00:00:59]

} Bc7 {

[%clk 00:59:01]

} {

[%emt 00:00:09]

} 23. Qa2+ {

[%clk 00:25:53]

} {

[%emt 00:03:17]

} Kh7 {

[%clk 00:57:08]

} {

[%emt 00:02:23]

} 24. Rad1 {

[%clk 00:18:14]

} {

[%emt 00:08:09]

} Rb5 {

[%clk 00:52:22]

} {

[%emt 00:05:16]

} 25. Qa1 {

[%clk 00:12:04]

} {

[%emt 00:06:40]

} Qd5 {

[%clk 00:50:14]

} {

[%emt 00:02:38]

} 26. Rd2 {

[%clk 00:06:56]

} {

[%emt 00:05:38]

} Re7 {

[%clk 00:46:27]

} {

[%emt 00:04:17]

} 27. Qa2 {

[%clk 00:04:25]

} {

[%emt 00:03:01]

} Nf4 {

[%clk 00:45:33]

} {

[%emt 00:01:24]

} 28. Qxd5 {

[%clk 00:02:56]

} {

[%emt 00:01:59]

} Nxd5 {

[%clk 00:45:46]

} {

[%emt 00:00:16]

} 29. Bxe5 {

[%clk 00:02:25]

} {

[%emt 00:01:01]

} Rxb4 {

[%clk 00:45:55]

} {

[%emt 00:00:21]

} 30. h3 {

[%clk 00:02:19]

} {

[%emt 00:00:36]

} a5 {

[%clk 00:45:36]

} {

[%emt 00:00:49]

} 31. Rde2 {

[%clk 00:01:13]

} {

[%emt 00:01:36]

} a4 {

[%clk 00:45:05]

} {

[%emt 00:01:01]

} 32. Bxc7 {

[%clk 00:01:38]

} {

[%emt 00:00:05]

} Rxc7 {

[%clk 00:45:24]

} {

[%emt 00:00:10]

} 33. Nxf5 {

[%clk 00:01:46]

} {

[%emt 00:00:21]

} Bxf5 {

[%clk 00:45:49]

} {

[%emt 00:00:06]

} 34. Ne5 {

[%clk 00:01:37]

} {

[%emt 00:00:38]

} a3 {

[%clk 00:46:01]

} {

[%emt 00:00:18]

} 35. g4 {

[%clk 00:01:49]

} {

[%emt 00:00:18]

} Bc8 {

[%clk 00:46:08]

} {

[%emt 00:00:23]

} 36. Nc4 {

[%clk 00:02:06]

} {

[%emt 00:00:13]

} Nf4 {

[%clk 00:46:23]

} {

[%emt 00:00:15]

} 37. Re3 {

[%clk 00:02:21]

} {

[%emt 00:00:15]

} a2 {

[%emt 00:00:44]

} 0-1